bitfinex/quotes_BTCUSD_20220226
["timestamp","ask_amount","ask_price","bid_price","bid_amount"]
[1645854063005,0.1216,39246.0,39233.0,0.679566]
[1645854063207,0.1216,39246.0,39233.0,0.3]
[1645854063407,0.00035261,39235.0,39234.0,0.379566]
[1645854064210,0.17884576,39236.0,39233.0,0.379566]
[1645854064611,0.17919837,39236.0,39233.0,0.379566]
[1645854064810,0.17919837,39236.0,39232.0,0.00065936]
[1645854065458,0.17884576,39236.0,39232.0,0.00065936]
[1645854065652,0.17919837,39236.0,39232.0,0.00065936]
[1645854066656,0.063765,39235.0,39232.0,0.00065936]
[1645854066857,0.494031,39235.0,39232.0,0.00065936]
[1645854067055,0.494031,39235.0,39232.0,0.00056774]
[1645854069096,0.495031,39235.0,39232.0,0.00056774]
[1645854069301,0.49538337,39235.0,39232.0,0.00056774]
[1645854069898,0.11581737,39235.0,39232.0,0.00056774]
[1645854070297,0.115465,39235.0,39232.0,0.00056774]
[1645854070501,0.11581737,39235.0,39232.0,0.00056774]
[1645854070699,0.05205237,39235.0,39232.0,0.00056774]
[1645854070899,0.05105237,39235.0,39232.0,0.00056774]
[1645854071505,0.0507,39235.0,39232.0,0.00056774]
[1645854071798,0.05105237,39235.0,39232.0,0.00056774]
[1645854072400,0.379566,39234.0,39232.0,0.00056774]
[1645854072649,0.430266,39234.0,39232.0,0.00056774]
[1645854072850,0.1007,39234.0,39232.0,0.00056774]
[1645854073350,0.379566,39233.0,39232.0,0.00056774]
[1645854073951,0.1007,39234.0,39232.0,0.00056774]
[1645854074154,0.05035237,39234.0,39232.0,0.00056774]
[1645854074350,0.00035237,39234.0,39232.0,0.00056774]
[1645854074952,0.00135237,39234.0,39232.0,0.00056774]
[1645854075150,0.001,39234.0,39232.0,0.00056774]
[1645854076395,0.1851,39239.0,39232.0,0.00056774]
[1645854076596,0.00035237,39235.0,39233.0,7.103e-05]
[1645854077597,0.063764,39238.0,39233.0,7.103e-05]
[1645854077796,0.00035237,39236.0,39233.0,7.103e-05]
[1645854078596,0.2351,39239.0,39233.0,7.103e-05]
[1645854078995,0.00035236,39236.0,39233.0,7.103e-05]
[1645854079796,0.2351,39239.0,39233.0,7.103e-05]
[1645854080045,0.00035236,39236.0,39233.0,7.103e-05]
[1645854081046,0.2351,39239.0,39233.0,7.103e-05]
[1645854081249,0.00035236,39236.0,39233.0,7.103e-05]
[1645854081646,0.00035236,39236.0,39232.0,0.00056774]
[1645854082346,0.1007,39240.0,39232.0,0.00056774]
[1645854082546,0.00035237,39236.0,39232.0,0.00056774]
[1645854083549,0.05,39240.0,39232.0,0.00056774]
[1645854083810,0.379566,39235.0,39232.0,0.00056774]
[1645854084006,0.1,39233.0,39232.0,0.00056774]
[1645854084206,0.1,39233.0,39223.0,0.00035248]
[1645854084207,1.15,39232.0,39223.0,0.00035248]
[1645854084407,1.191456,39233.0,39223.0,0.00035248]
[1645854084408,0.6343,39228.0,39223.0,0.00035248]
[1645854084609,0.157156,39227.0,39215.0,0.21484763]
[1645854084805,0.06378533,39225.0,39214.0,0.21484763]
[1645854085004,0.430266,39224.0,39223.0,0.00035245]
[1645854085203,0.530266,39224.0,39223.0,0.00035245]
[1645854085605,0.830266,39224.0,39223.0,0.00035245]
[1645854085905,0.17603,39224.0,39210.0,0.21484763]
[1645854086104,0.379566,39223.0,39222.0,0.00035245]
[1645854086306,0.430266,39223.0,39222.0,0.00035245]
[1645854087108,0.3507,39223.0,39210.0,0.21484763]
[1645854087304,0.379566,39222.0,39221.0,0.00035246]
[1645854087544,0.0507,39222.0,39221.0,0.00035246]
[1645854087848,0.1007,39222.0,39221.0,0.00035246]
[1645854088344,0.063793,39220.0,39209.0,0.21484763]
[1645854088545,0.11449155,39219.0,39214.0,0.00141006]
[1645854088745,0.177584,39221.0,39220.0,0.3565691]
[1645854088945,0.55715,39221.0,39220.0,0.3565691]
[1645854089345,0.90785,39221.0,39220.0,0.3565691]
[1645854090146,0.78030541,39221.0,39220.0,0.3565691]
[1645854090346,0.60785,39221.0,39220.0,0.3565691]
[1645854090745,0.228284,39221.0,39220.0,0.3565691]
[1645854090947,0.1007,39221.0,39220.0,0.3565691]
[1645854091147,0.480266,39221.0,39220.0,0.35506786]
[1645854091397,0.1007,39221.0,39220.0,0.35506786]
[1645854092198,0.0507,39221.0,39220.0,0.35506786]
[1645854092402,0.430266,39221.0,39220.0,0.35506786]
[1645854092999,0.432266,39221.0,39220.0,0.35506786]
[1645854094399,0.430266,39221.0,39220.0,0.35506786]
[1645854096349,0.20033298,39221.0,39220.0,0.35506786]
[1645854096753,0.20033298,39221.0,39220.0,0.35514002]
[1645854097557,0.25103298,39221.0,39220.0,0.35514002]
[1645854098996,0.25203298,39221.0,39220.0,0.35514002]
[1645854100398,0.25103298,39221.0,39220.0,0.35514002]
[1645854101000,0.25203298,39221.0,39220.0,0.35514002]
[1645854101406,0.063797,39216.0,39204.0,0.1251]
[1645854101604,0.063797,39216.0,39204.0,0.001]
[1645854101605,0.20034,39211.0,39204.0,0.001]
[1645854101803,0.106456,39209.0,39204.0,0.001]
[1645854102002,0.0507,39208.0,39204.0,0.001]
[1645854102200,0.48559419,39207.0,39204.0,0.001]
[1645854102402,0.357496,39206.0,39204.0,0.001]
[1645854102654,0.0507,39206.0,39204.0,0.001]
[1645854103054,0.0507,39206.0,39204.0,0.00119641]
[1645854103055,0.0517,39206.0,39204.0,0.00119641]
[1645854103654,0.22003357,39206.0,39204.0,0.00119641]
[1645854103856,0.22003357,39206.0,39204.0,0.001]
[1645854104257,0.21903357,39206.0,39204.0,0.00135204]
[1645854105055,0.21903357,39206.0,39204.0,0.001]
[1645854105255,0.21903357,39206.0,39204.0,0.00135204]
[1645854106300,0.21903357,39206.0,39204.0,0.001]
[1645854106597,0.21903357,39206.0,39204.0,0.00135204]
[1645854107197,0.22003357,39206.0,39204.0,0.00135204]
[1645854107599,0.22003357,39206.0,39204.0,0.001]
[1645854107800,0.0517,39206.0,39204.0,0.00135204]
[1645854108007,0.001,39206.0,39205.0,0.383623]
[1645854108401,0.363793,39217.0,39205.0,0.0041]
[1645854108603,0.063793,39217.0,39205.0,0.0041]
[1645854109001,0.063793,39217.0,39209.0,0.00035202]
[1645854109901,0.063793,39217.0,39205.0,0.0061]
[1645854110165,0.1305,39218.0,39205.0,0.0061]
[1645854110166,0.015,39218.0,39210.0,0.379523]
[1645854110360,0.015,39218.0,39211.0,0.00035201]
[1645854110760,0.05624391,39222.0,39211.0,0.00035201]
[1645854111162,0.05624391,39222.0,39211.0,0.002]
[1645854111361,0.06379,39220.0,39215.0,0.00035199]
[1645854112162,0.06379,39220.0,39211.0,0.00189919]
[1645854112163,0.36379,39220.0,39211.0,0.00189919]
[1645854112363,0.72758,39220.0,39205.0,0.0041]
[1645854112763,0.79136969,39220.0,39205.0,0.0041]
[1645854112963,0.19497458,39213.0,39205.0,0.0041]
[1645854113168,0.19497458,39213.0,39206.0,0.379523]
[1645854113565,0.19497458,39213.0,39208.0,0.379523]
[1645854113801,0.19136969,39220.0,39208.0,0.379523]
[1645854114001,0.19136969,39220.0,39205.0,0.0061]
[1645854114401,0.19136969,39220.0,39205.0,0.0041]
[1645854114901,0.23697381,39218.0,39206.0,0.17937148]
[1645854115101,0.23697381,39218.0,39211.0,0.00019638]
[1645854116004,0.23697381,39218.0,39207.0,0.21244213]
[1645854116206,0.23697381,39218.0,39213.0,0.000352]
[1645854117203,0.23697381,39218.0,39207.0,0.31231635]
[1645854117402,0.23697381,39218.0,39213.0,0.000352]
[1645854117860,0.28697381,39218.0,39213.0,0.000352]
[1645854118058,0.0507,39217.0,39213.0,0.000352]
[1645854118258,0.606796,39216.0,39213.0,0.000352]
[1645854118462,0.114502,39215.0,39205.0,0.0041]
[1645854118659,0.606796,39214.0,39213.0,0.000352]
[1645854118856,0.306796,39214.0,39213.0,0.000352]
[1645854119059,0.734405,39214.0,39213.0,0.000352]
[1645854119258,0.4982087,39214.0,39213.0,0.000352]
[1645854119558,0.4982087,39214.0,39207.0,0.0014082]
[1645854119758,0.306796,39213.0,39212.0,0.00032805]
[1645854120158,0.357496,39213.0,39212.0,0.00032805]
[1645854120963,0.1914127,39214.0,39213.0,0.52440255]
[1645854121162,0.306796,39214.0,39213.0,0.52440255]
[1645854121603,0.357496,39214.0,39213.0,0.52440255]
[1645854122601,0.421291,39214.0,39213.0,0.52440255]
[1645854125356,0.422291,39214.0,39213.0,0.52440255]
[1645854126355,0.421291,39214.0,39213.0,0.52440255]
[1645854127761,0.421291,39214.0,39212.0,0.00019585]
[1645854127762,1.0,39213.0,39212.0,0.00019585]
[1645854127959,1.0,39213.0,39205.0,0.0041]
[1645854127960,2.091796,39213.0,39205.0,0.0041]
[1645854128160,0.7343,39211.0,39205.0,0.0041]
[1645854128359,0.485138,39210.0,39205.0,0.0041]
[1645854128665,0.063819,39209.0,39205.0,0.0041]
[1645854128903,0.357496,39208.0,39205.0,0.0041]
[1645854129303,1.15,39207.0,39203.0,0.041]
[1645854129507,1.35943978,39206.0,39205.0,0.00034094]
[1645854129704,1.2776616,39205.0,39195.0,0.302]
[1645854129903,0.063831,39202.0,39195.0,0.002]
[1645854130101,0.612822,39201.0,39195.0,0.002]
[1645854130306,0.75,39200.0,39195.0,0.002]
[1645854130504,0.357496,39199.0,39195.0,0.002]
[1645854130703,0.0507,39198.0,39195.0,0.002]
[1645854130902,0.306796,39197.0,39195.0,0.002]
[1645854131105,0.0507,39196.0,39195.0,0.002]
[1645854131307,0.357496,39196.0,39195.0,0.002]
[1645854131505,0.357496,39196.0,39193.0,0.0031]
[1645854131709,0.357496,39196.0,39189.0,0.0041]
[1645854131710,1.506796,39194.0,39191.0,0.0012]
[1645854131907,1.506796,39194.0,39191.0,0.0002]
[1645854131908,0.6343,39192.0,39191.0,0.0002]
[1645854132106,0.6343,39192.0,39172.0,0.2014]
[1645854132107,1.15,39191.0,39172.0,0.2014]
[1645854132307,0.18781985,39186.0,39183.0,0.0011]
[1645854132566,0.0507,39185.0,39183.0,0.0011]
[1645854133567,0.306796,39184.0,39183.0,0.0011]
[1645854133766,0.357496,39184.0,39183.0,0.0011]
[1645854133970,0.114545,39184.0,39183.0,0.0011]
[1645854134168,0.0507,39184.0,39183.0,0.0011]
[1645854135768,0.357496,39184.0,39183.0,0.0011]
[1645854135969,0.04585086,39184.0,39183.0,0.0011]
[1645854136406,0.35264686,39184.0,39183.0,0.0011]
[1645854136608,0.04585086,39184.0,39183.0,0.0011]
[1645854137605,0.35264686,39184.0,39183.0,0.0011]
[1645854138706,0.04585086,39184.0,39183.0,0.0011]
[1645854138905,0.35264686,39184.0,39183.0,0.0011]
[1645854139110,0.5,39183.0,39182.0,0.00345071]
[1645854139306,0.95,39182.0,39181.0,0.012]
[1645854139506,0.95,39181.0,39177.0,0.0021]
[1645854139708,0.3507,39180.0,39177.0,0.0021]
[1645854139907,1.15,39177.0,39176.0,0.00350307]
[1645854140167,1.15,39177.0,39165.0,0.3667]
[1645854140168,0.10733578,39175.0,39171.0,0.0011]
[1645854140362,1.0,39173.0,39169.0,0.045439]
[1645854140565,1.0,39173.0,39165.0,0.3667]
[1645854140566,1.05,39171.0,39165.0,0.3667]
[1645854140762,0.586386,39170.0,39165.0,0.0041]
[1645854140963,0.625016,39170.0,39167.0,0.00093589]
[1645854141163,0.7,39168.0,39165.0,0.0012]
[1645854141362,0.04767,39167.0,39165.0,0.0012]
[1645854141561,0.272734,39166.0,39165.0,0.0012]
[1645854141775,0.321904,39166.0,39165.0,0.0012]
[1645854141963,0.321104,39166.0,39165.0,0.0012]
[1645854142162,0.0507,39166.0,39165.0,0.0012]
[1645854142463,0.1007,39166.0,39165.0,0.0012]
[1645854142663,1.519671,39166.0,39164.0,0.00019345]
[1645854142865,0.127779,39165.0,39160.0,0.01219345]
[1645854143063,0.0507,39164.0,39160.0,0.01219345]
[1645854143265,0.0507,39163.0,39160.0,0.00219345]
[1645854143465,0.0507,39162.0,39160.0,0.00219345]
[1645854143663,0.0507,39165.0,39162.0,0.379876]
[1645854143913,0.563867,39173.0,39160.0,0.00219345]
[1645854143914,0.0507,39167.0,39163.0,0.3]
[1645854144115,0.0507,39167.0,39163.0,0.379876]
[1645854144316,0.0507,39167.0,39164.0,0.3]
[1645854144517,0.0507,39167.0,39164.0,0.29981422]
[1645854144715,0.0070272,39169.0,39154.0,0.02533]
[1645854144913,0.0070272,39169.0,39142.0,0.21507093]
[1645854145113,0.0070272,39169.0,39144.0,0.68903505]
[1645854145114,0.0507,39168.0,39144.0,0.68903505]
[1645854145313,0.001,39167.0,39159.0,0.001]
[1645854145516,0.0507,39166.0,39159.0,0.001]
[1645854146013,0.0507,39166.0,39151.0,0.3159497]
[1645854146014,0.0507,39166.0,39154.0,0.02133]
[1645854146213,0.0507,39166.0,39156.0,0.02133]
[1645854146614,0.0507,39166.0,39161.0,9.081e-05]
[1645854147213,0.0517,39166.0,39161.0,9.081e-05]
[1645854147658,0.0517,39166.0,39162.0,0.00019307]
[1645854148457,0.0570272,39169.0,39161.0,9.081e-05]
[1645854148657,0.0570272,39169.0,39162.0,0.00019306]
[1645854149258,0.0580272,39169.0,39162.0,0.00019306]
[1645854149466,0.00143979,39166.0,39162.0,0.00019306]
[1645854149758,0.00143979,39166.0,39161.0,9.081e-05]
[1645854149958,0.00143979,39166.0,39162.0,0.00019306]
[1645854150359,0.00143979,39166.0,39155.0,0.02338622]
[1645854150558,0.00143979,39166.0,39156.0,0.40326722]
[1645854150760,0.00143979,39166.0,39157.0,0.31738932]
[1645854150959,0.00143979,39166.0,39157.0,0.379881]
[1645854151159,0.1007,39172.0,39170.0,0.11693398]
[1645854151401,0.0507,39172.0,39170.0,0.11230822]
[1645854151803,0.0507,39172.0,39170.0,0.09130822]
[1645854152302,0.114565,39172.0,39170.0,0.09130822]
[1645854153105,0.194,39177.0,39171.0,0.31483772]
[1645854153304,0.195,39177.0,39171.0,0.31483772]
[1645854153904,0.001,39177.0,39171.0,0.31483772]
[1645854154505,0.20602676,39178.0,39171.0,0.31483772]
[1645854154906,0.00035066,39176.0,39171.0,0.31483772]
[1645854155755,0.20702676,39178.0,39171.0,0.31483772]
[1645854155956,0.001,39178.0,39171.0,0.31483772]
[1645854156555,0.3,39182.0,39170.0,0.09130822]
[1645854156556,0.3,39182.0,39172.0,7.963e-05]
[1645854156958,0.3,39182.0,39164.0,0.23470693]
[1645854156959,0.3,39182.0,39134.0,0.1268712]
[1645854157161,0.3,39182.0,39096.0,1.92100637]
[1645854157162,1.46483772,39181.0,39162.0,0.19948923]
[1645854157370,0.02533,39180.0,39167.0,0.001]
[1645854157561,0.24049018,39172.0,39167.0,0.001]
[1645854157759,0.3745193,39171.0,39167.0,0.001]
[1645854157959,1.15,39170.0,39158.0,0.046]
[1645854158160,1.15,39170.0,39146.0,0.7731]
[1645854158161,0.19878352,39155.0,39146.0,0.7731]
[1645854158361,0.23894458,39159.0,39158.0,0.77744803]
[1645854158659,0.0507,39163.0,39158.0,0.77744803]
[1645854158903,0.0507,39163.0,39159.0,0.379881]
[1645854159103,0.0507,39163.0,39158.0,0.39756703]
[1645854159502,0.31537724,39162.0,39158.0,0.39756703]
[1645854159803,0.31537724,39162.0,39158.0,0.35756703]
[1645854161005,0.31537724,39162.0,39159.0,0.379881]
[1645854161403,0.31637724,39162.0,39159.0,0.379881]
[1645854161603,0.31637724,39162.0,39158.0,0.35756703]
[1645854162008,0.31637724,39162.0,39159.0,0.379881]
[1645854162406,0.31637724,39162.0,39158.0,0.35756703]
[1645854162660,0.31537724,39162.0,39159.0,0.379881]
[1645854162855,0.31537724,39162.0,39158.0,0.35756703]
[1645854163258,0.25,39159.0,39158.0,0.35756703]
[1645854163463,0.95,39158.0,39156.0,0.00035108]
[1645854163657,0.0507,39157.0,39156.0,0.00035108]
[1645854164056,0.0507,39157.0,39154.0,0.002]
[1645854164257,0.25,39155.0,39154.0,0.002]
[1645854164557,0.6007,39155.0,39146.0,0.05135664]
[1645854164761,0.0507,39155.0,39147.0,0.379881]
[1645854164956,0.0507,39155.0,39146.0,0.00135664]
[1645854164957,0.1007,39155.0,39146.0,0.00135664]
[1645854165160,0.37056058,39154.0,39146.0,0.00135664]
[1645854165357,0.3007,39153.0,39146.0,0.00135664]
[1645854165557,0.36459107,39153.0,39149.0,0.00033912]
[1645854166512,0.36459107,39153.0,39138.0,0.26849]
[1645854166712,0.37056058,39152.0,39139.0,0.379881]
[1645854166911,0.0507,39151.0,39139.0,0.379881]
[1645854167111,0.0507,39150.0,39139.0,0.379881]
[1645854168116,0.0507,39150.0,39143.0,0.00034821]
[1645854168619,0.37533,39144.0,39143.0,0.00034821]
[1645854168817,0.74830914,39144.0,39143.0,0.00034821]
[1645854169015,0.72297914,39144.0,39137.0,0.0999]
[1645854169414,0.22309124,39136.0,39131.0,0.3611]
[1645854169715,0.0507,39137.0,39132.0,0.374881]
[1645854170371,0.25,39133.0,39128.0,0.0999]
[1645854170565,0.25,39133.0,39121.0,0.05]
[1645854170566,0.35,39129.0,39121.0,0.05]
[1645854170768,0.45,39127.0,39122.0,0.380073]
[1645854170965,0.0507,39127.0,39111.0,0.430073]
[1645854171164,0.0507,39127.0,39112.0,0.01021]
[1645854171362,0.0507,39127.0,39111.0,0.430073]
[1645854171363,0.37227914,39126.0,39113.0,0.380073]
[1645854171565,0.0507,39126.0,39113.0,0.380073]
[1645854171762,0.0507,39126.0,39114.0,0.36596521]
[1645854171961,0.0507,39126.0,39115.0,0.380283]
[1645854172163,0.0507,39126.0,39115.0,0.390293]
[1645854172364,0.0507,39126.0,39117.0,0.02533]
[1645854172664,0.0507,39126.0,39120.0,0.02533]
[1645854172866,0.0507,39126.0,39122.0,0.02533]
[1645854173062,0.063913,39138.0,39124.0,0.02533]
[1645854173264,0.063913,39138.0,39126.0,0.02533]
[1645854173461,0.063913,39138.0,39127.0,0.404403]
[1645854173665,0.063913,39138.0,39130.0,0.02533]
[1645854173922,0.063913,39138.0,39131.0,0.405412]
[1645854174114,0.063913,39138.0,39131.0,0.38042739]
[1645854174513,0.30922899,39139.0,39131.0,0.38042739]
[1645854175116,0.30922899,39139.0,39131.0,0.405412]
[1645854175315,0.001,39132.0,39131.0,0.380082]
[1645854177418,0.001,39132.0,39131.0,0.375082]
[1645854177868,0.001,39132.0,39131.0,0.365082]
[1645854178268,0.30922899,39139.0,39133.0,0.002]
[1645854178468,0.30922899,39139.0,39134.0,0.380082]
[1645854178772,0.0639093,39137.0,39134.0,0.00033856]
[1645854179369,0.3139093,39137.0,39134.0,0.00033856]
[1645854179771,0.3139093,39137.0,39135.0,0.380066]
[1645854179772,0.0639093,39137.0,39135.0,0.380066]
[1645854179968,0.0639093,39137.0,39124.0,0.02533]
[1645854180169,0.0639093,39137.0,39126.0,0.02533]
[1645854180369,0.0639093,39137.0,39127.0,0.319184]
[1645854180771,0.04,39135.0,39127.0,0.319184]
[1645854180972,0.04102547,39135.0,39127.0,0.243854]
[1645854181171,0.38081922,39135.0,39127.0,0.243854]
[1645854181413,0.38081922,39135.0,39123.0,0.380069]
[1645854181811,0.38081922,39135.0,39124.0,0.02533]
[1645854182011,0.38081922,39135.0,39125.0,0.243883]
[1645854182211,0.63081922,39135.0,39123.0,0.380072]
[1645854182410,0.00016389,39131.0,39123.0,0.380072]
[1645854182611,0.37997226,39131.0,39123.0,0.380072]
[1645854182910,0.37997226,39131.0,39123.0,0.405402]
[1645854183311,0.37997226,39131.0,39123.0,0.380072]
[1645854183511,0.37980837,39131.0,39123.0,0.380072]
[1645854183711,0.00016389,39129.0,39123.0,0.380072]
[1645854183911,0.00016389,39129.0,39124.0,0.02533]
[1645854184112,0.00016389,39129.0,39125.0,0.243881]
[1645854184311,0.00016389,39129.0,39126.0,0.41958098]
[1645854184512,0.00016389,39129.0,39127.0,0.380038]
[1645854184712,0.063914,39133.0,39127.0,0.380038]
[1645854185173,0.00034512,39129.0,39123.0,0.243893]
[1645854185369,0.00034512,39129.0,39124.0,0.41958098]
[1645854185572,0.00034512,39129.0,39125.0,0.380053]
[1645854185772,0.00034512,39129.0,39127.0,0.243873]
[1645854185971,0.06391581,39131.0,39127.0,0.243873]
[1645854186169,0.00034513,39129.0,39123.0,0.380072]
[1645854186370,0.00034513,39129.0,39124.0,0.02533]
[1645854186573,0.00034513,39129.0,39125.0,0.24396339]
[1645854186771,0.00034513,39129.0,39126.0,0.243875]
[1645854186972,0.00034513,39129.0,39127.0,0.44460243]
[1645854187172,0.37783273,39138.0,39128.0,0.380027]
[1645854187173,0.313902,39138.0,39128.0,0.380027]
[1645854187375,0.313902,39138.0,39130.0,0.243848]
[1645854187572,0.063902,39138.0,39132.0,0.37998]
[1645854188377,0.17435187,39136.0,39132.0,0.37998]
[1645854188573,0.063902,39138.0,39132.0,0.37998]
[1645854189012,0.063902,39138.0,39133.0,0.33581546]
[1645854189213,0.01,39139.0,39134.0,0.243821]
[1645854189910,0.00034561,39137.0,39134.0,0.243821]
[1645854190312,0.00034561,39137.0,39136.0,0.379939]
[1645854190513,0.00034561,39137.0,39136.0,0.430639]
[1645854190712,0.01,39139.0,39136.0,0.430639]
[1645854190916,0.00034561,39138.0,39136.0,0.430639]
[1645854191313,0.00034561,39138.0,39136.0,0.530639]
[1645854191913,0.01,39139.0,39136.0,0.530639]
[1645854192113,0.01,39139.0,39137.0,0.02533]
[1645854192312,0.0103456,39139.0,39138.0,0.319825]
[1645854192562,0.0103456,39139.0,39138.0,0.419825]
[1645854192762,0.0103456,39139.0,39138.0,0.394495]
[1645854192962,0.0103456,39139.0,39138.0,0.419825]
[1645854193165,0.01,39139.0,39138.0,0.394495]
[1645854193965,0.01,39139.0,39138.0,0.7558439]
[1645854194365,0.01,39139.0,39138.0,0.419825]
[1645854195163,0.8669456,39142.0,39140.0,0.02533]
[1645854195365,1.0066,39148.0,39142.0,0.02533]
[1645854195564,1.0066,39148.0,39143.0,0.269084]
[1645854195966,1.0066,39148.0,39143.0,0.243754]
[1645854196420,0.25,39144.0,39143.0,0.243754]
[1645854196718,0.25,39144.0,39139.0,0.24356]
[1645854196921,0.1814694,39143.0,39139.0,0.24356]
[1645854197317,0.001,39140.0,39139.0,0.24356]
[1645854197517,0.24536539,39143.0,39139.0,0.24356]
[1645854197718,0.01,39140.0,39139.0,0.24356]
[1645854198724,0.25,39141.0,39139.0,0.24356]
[1645854199120,0.001,39140.0,39139.0,0.24356]
[1645854201273,0.001,39140.0,39139.0,0.26889]
[1645854201467,0.001,39140.0,39139.0,0.24356]
[1645854201669,0.063882,39147.0,39140.0,0.90132177]
[1645854201868,0.00034559,39142.0,39141.0,0.380088]
[1645854202267,0.00034559,39142.0,39141.0,0.480088]
[1645854202665,1.0066,39148.0,39141.0,0.480088]
[1645854203068,0.00034558,39143.0,39141.0,0.480088]
[1645854203918,1.32048254,39148.0,39141.0,0.480088]
[1645854204312,0.00034558,39144.0,39141.0,0.480088]
[1645854205207,0.063882,39147.0,39141.0,0.480088]
[1645854205608,0.00034558,39144.0,39141.0,0.480088]
[1645854205808,0.00034558,39144.0,39141.0,0.505418]
[1645854206009,0.00034558,39144.0,39141.0,0.480088]
[1645854206210,0.063882,39147.0,39141.0,0.480088]
[1645854206610,0.00034558,39144.0,39141.0,0.480088]
[1645854208664,1.0066,39148.0,39143.0,0.268884]
[1645854208967,1.0066,39148.0,39145.0,0.380049]
[1645854209360,1.0066,39148.0,39147.0,0.243524]
[1645854209562,1.0066,39148.0,39147.0,0.253734]
[1645854209762,1.0066,39148.0,39147.0,0.353734]
[1645854210561,1.0066,39148.0,39147.0,0.379064]
[1645854210960,1.0066,39148.0,39147.0,0.478964]
[1645854211162,0.43072561,39148.0,39147.0,0.478964]
[1645854211408,0.43072561,39148.0,39147.0,0.473964]
[1645854211611,0.43072561,39148.0,39147.0,0.448634]
[1645854212611,0.43072561,39148.0,39147.0,0.473964]
[1645854213210,0.43072561,39148.0,39147.0,0.374064]
[1645854214116,0.00033493,39149.0,39147.0,0.374064]
[1645854214512,0.97958462,39155.0,39147.0,0.363854]
[1645854214713,1.13432788,39158.0,39148.0,1.2]
[1645854214912,0.00032352,39150.0,39149.0,0.380008]
[1645854215364,0.00032352,39150.0,39149.0,0.430008]
[1645854215964,1.13432788,39158.0,39149.0,0.455338]
[1645854216164,1.13432788,39158.0,39149.0,0.48062694]
[1645854216768,1.13432788,39158.0,39149.0,0.81516083]
[1645854216964,1.13432788,39158.0,39149.0,0.48062694]
[1645854217165,1.07046388,39158.0,39149.0,0.8151391]
[1645854217665,1.07046388,39158.0,39149.0,0.48062694]
[1645854217865,1.07046388,39158.0,39152.0,0.02533]
[1645854218066,1.07046388,39158.0,39153.0,0.420667]
[1645854218067,1.0066,39158.0,39153.0,0.420667]
[1645854218267,1.0066,39158.0,39153.0,0.530877]
[1645854218911,0.00034579,39157.0,39154.0,0.35963033]
[1645854219112,0.00034579,39157.0,39156.0,0.02533]
[1645854219314,0.00034579,39157.0,39156.0,0.456191]
[1645854219510,0.001,39157.0,39156.0,0.456191]
[1645854219711,0.001,39157.0,39156.0,0.53147994]
[1645854220109,0.001,39157.0,39156.0,0.58147994]
[1645854220511,0.001,39157.0,39156.0,1.34436994]
[1645854221111,1.00274088,39158.0,39156.0,1.34436994]
[1645854221311,0.00014088,39158.0,39156.0,1.34436994]
[1645854221714,0.00014088,39158.0,39156.0,0.7731]
[1645854221919,1.0066,39164.0,39157.0,0.78331]
[1645854222116,0.42624242,39166.0,39157.0,0.01021]
[1645854222314,0.42624242,39166.0,39158.0,0.369924]
[1645854222315,0.00014088,39159.0,39158.0,0.369924]
[1645854222763,0.75,39158.0,39148.0,0.05]
[1645854222965,0.06387554,39152.0,39146.0,0.01021]
[1645854223162,0.063879,39150.0,39143.0,0.01021]
[1645854223562,0.063879,39150.0,39141.0,0.31533989]
[1645854223563,0.063879,39150.0,39142.0,0.01021]
[1645854223762,0.25,39147.0,39142.0,0.01021]
[1645854223962,0.25,39147.0,39139.0,0.03793874]
[1645854223963,0.4304942,39146.0,39139.0,0.01021]
[1645854224164,0.4304942,39146.0,39136.0,0.05]
[1645854224165,0.01,39139.0,39136.0,0.01]
[1645854224364,0.4304942,39146.0,39133.0,0.26929986]
[1645854224365,0.4304942,39144.0,39141.0,0.20544901]
[1645854224564,0.85528807,39148.0,39141.0,0.20544901]
[1645854224762,0.1,39142.0,39133.0,0.21543989]
[1645854224966,0.1,39142.0,39131.0,0.21543989]
[1645854224967,0.1,39135.0,39131.0,0.21543989]
[1645854225170,0.12533,39142.0,39129.0,0.05]
[1645854225171,0.1,39132.0,39129.0,0.05]
[1645854225365,0.1,39130.0,39124.0,0.26929986]
[1645854225564,0.163917,39131.0,39123.0,0.26929986]
[1645854225966,0.063917,39131.0,39123.0,0.79843]
[1645854226166,0.063917,39131.0,39125.0,1.04239986]
[1645854226415,0.063917,39131.0,39125.0,0.26929986]
[1645854226616,0.06391649,39134.0,39120.0,0.38722333]
[1645854226617,0.06391649,39134.0,39126.0,0.26929986]
[1645854226814,0.06391649,39134.0,39127.0,0.26929986]
[1645854227319,0.06391649,39134.0,39127.0,0.31929986]
[1645854227516,0.06391649,39134.0,39128.0,0.26929986]
[1645854227819,0.06391649,39134.0,39128.0,0.32950986]
[1645854228017,0.06391649,39134.0,39128.0,0.06021]
[1645854228215,0.06391649,39134.0,39129.0,0.00034612]
[1645854229016,0.16391649,39134.0,39129.0,0.00034612]
[1645854229217,0.06391649,39134.0,39128.0,0.31929986]
[1645854229418,0.06391649,39134.0,39128.0,0.05]
[1645854229619,0.06391649,39134.0,39127.0,0.36929986]
[1645854229823,0.16391649,39134.0,39127.0,0.36929986]
[1645854230076,0.32293076,39133.0,39127.0,0.36929986]
[1645854230479,0.47801068,39132.0,39127.0,0.31929986]
[1645854230677,0.47801068,39132.0,39125.0,0.42305429]
[1645854230678,0.19174138,39132.0,39125.0,0.0999]
[1645854230879,0.17931834,39126.0,39125.0,0.0999]
[1645854231277,0.17931834,39126.0,39122.0,0.05]
[1645854231479,0.24323434,39126.0,39122.0,0.26929986]
[1645854231678,0.24323434,39126.0,39123.0,0.26929986]
[1645854231878,0.24323434,39126.0,39123.0,0.31929986]
[1645854231879,0.063916,39126.0,39123.0,0.31929986]
[1645854232180,0.06392003,39128.0,39123.0,0.36929986]
[1645854232483,0.06392003,39128.0,39123.0,0.1]
[1645854232484,0.15892003,39128.0,39123.0,0.1]
[1645854232877,0.15892003,39128.0,39124.0,0.01863469]
[1645854232878,0.17356247,39127.0,39124.0,0.01863469]